Cogmind - Beta 12 @@@ ROGUE MODE // 2023.09.11 @ 22:55:08 Player: Rentaro Result: Self-destructed Performance ------------- Evolutions (2) 1000 Regions Visited (4) 800 Robots Destroyed (16) 80 Value Destroyed (384) 384 Prototype IDs (2) 40 Alien Tech Used (0) 0 Bonus (0) 0 TOTAL SCORE: 2304 Bonus ------- None Cogmind --------- Core Integrity 473/550 Matter 282/300 Energy 219/280 System Corruption 0% Temperature Warning (335) Movement Walking (190) Ox1 Location -8/Materials Parts ------- > --- POWER (1) -------- Heavy Ion Engine > --- PROPULSION (3) --- Aluminum Leg Aluminum Leg > --- UTILITY (5) ------ Heat Sink Small Storage Unit Structural Scanner Sensor Array Improved Signal Interpreter > --- WEAPON (2) ------- Ion Cannon Ion Cannon > --- INVENTORY (8) ---- Reinforced Ion Engine Actuator Array Rocket Launcher Peak State ------------ > --- POWER ------------ Heavy Ion Engine > --- PROPULSION ------- Aluminum Leg Aluminum Leg Aluminum Leg > --- UTILITY ---------- Heat Sink Small Storage Unit Structural Scanner Sensor Array Improved Signal Interpreter > --- WEAPON ----------- Ion Cannon Ion Cannon > --- INVENTORY -------- Reinforced Ion Engine Experimental Sensor Array Rocket Launcher [Rating: 20] Favorites ----------- Power Reinforced Ion Engine Engine Reinforced Ion Engine Propulsion Aluminum Leg Leg Aluminum Leg Utility Small Storage Unit Device Structural Scanner Storage Small Storage Unit Processor Improved Signal Interpreter Protection Light Armor Plating Weapon Medium Laser Energy Gun Medium Laser Energy Cannon Ion Cannon Build | -11 -10 -10 -9 -8 ------- Run | Jun Mat Min Mat Mat Slots Evolved 4 | . . . 2 2 Power . | . . . . . Propulsion 1 | . . . . 1 Utility 3 | . . . 2 1 Weapon . | . . . . . Parts Attached 24 | 6 5 1 7 5 Power 3 | 1 1 . 1 . Engine 3 | 1 1 . 1 . Core . | . . . . . Reactor . | . . . . . Propulsion 5 | 2 . . . 3 Treads . | . . . . . Leg 5 | 2 . . . 3 Wheel . | . . . . . Hover . | . . . . . Flight . | . . . . . Utility 12 | 1 4 1 4 2 Device 6 | . 1 1 3 1 Storage 3 | 1 2 . . . Processor 2 | . . . 1 1 Hackware . | . . . . . Protection 1 | . 1 . . . Artifact . | . . . . . Weapon 4 | 2 . . 2 . Energy Gun 2 | 2 . . . . Energy Cannon 2 | . . . 2 . Ballistic Gun . | . . . . . Ballistic Cannon . | . . . . . Launcher . | . . . . . Special Weapon . | . . . . . Impact Weapon . | . . . . . Slashing Weapon . | . . . . . Piercing Weapon . | . . . . . Special Melee Weapon . | . . . . . Unidentified Prototypes 2 | . . 1 1 . Parts Lost 1 | . . . . 1 Power . | . . . . . Propulsion 1 | . . . . 1 Utility . | . . . . . Weapon . | . . . . . Highest Loss Streak 1 | . . . . 1 To Critical Strikes . | . . . . . Average Slot Usage (%) 97 | . 98 100 96 96 Engine 11 | . 14 14 11 9 Leg 24 | . 28 28 22 23 Device 18 | . 6 6 26 27 Storage 11 | . 14 14 11 9 Processor 3 | . . . 3 9 Protection 2 | . 5 7 . . Energy Gun 19 | . 28 28 20 . Energy Cannon 4 | . . . 2 18 Naked Turns . | . . . . . Heaviest Build 28 | 13 21 21 27 28 Greatest Support 30 | 20 20 20 20 30 Greatest Overweight (x) 2 | . 1 1 1 2 Average Overweight (x) . | . . . . . Largest Inventory Capacity 10 | 8 10 8 8 8 Average Capacity 7 | 6 8 8 8 8 Most Carried 6 | 5 3 4 6 5 Average Carried 2 | 1 1 2 3 2 Final Capacity 8 | 8 8 8 8 8 Final Carried 5 | . 2 3 5 3 Class Distribution -------------------- 75% | Mutant 19% | Scavenger-Skirmisher 4% | Skirmisher Dominant Class ---------------- Mutant | -10/Materials Mutant | -10/Mines Mutant | -9/Materials Scavenger-Skirmisher | -8/Materials Resources | -11 -10 -10 -9 -8 ----------- Run | Jun Mat Min Mat Mat Matter Collected 437 | 219 71 40 60 47 Remotely . | . . . . . Salvage Created 570 | . 52 . 320 198 Parts 33 | . 10 . 15 8 Haulers Intercepted 2 | . . . 2 . Recyclers Shooed . | . . . . . Parts Field Recycled . | . . . . . Retrieved Matter . | . . . . . Parts Self-Destructed . | . . . . . Prevented . | . . . . . Kills | -11 -10 -10 -9 -8 ------- Run | Jun Mat Min Mat Mat Combat Hostiles Destroyed 10 | . 3 . 3 4 Guns 5 | . 2 . 3 . Cannons 4 | . . . . 4 Classes Destroyed 7 | . 2 . 5 . Worker 1 | . . . 1 . Builder 1 | . 1 . . . Hauler 2 | . . . 2 . Watcher 2 | . . . 2 . Swarmer 3 | . 3 . . . Grunt 5 | . . . 1 4 Sentry 2 | . . . 2 . Best Kill Streak 4 | . 3 . 3 4 Combat Bots Only 4 | . 3 . 1 4 Max Kills in Single Turn 2 | . 2 . 1 1 Gunslinging 1 | . 1 . . . Exploded . | . . . . . Melee . | . . . . . Uniques/NPCs Destroyed . | . . . . . Combat | -11 -10 -10 -9 -8 -------- Run | Jun Mat Min Mat Mat Damage Taken 632 | . 113 . 272 247 Core 137 | . 18 . 42 77 Absorbed by Shields . | . . . . . Regen/Repaired (Parts) 63 | . . . . 63 Core Remaining (%) 93 | 100 . 92 89 . Volleys Fired 59 | . 6 . 34 19 Largest 2 | . 2 . 2 2 Hottest 120 | . 90 . 90 120 Shots Fired 112 | . 12 . 62 38 Gun 74 | . 12 . 62 . Cannon 38 | . . . . 38 Launcher . | . . . . . Special . | . . . . . Kinetic . | . . . . . Thermal 112 | . 12 . 62 38 Explosive . | . . . . . Electromagnetic . | . . . . . Robot Hit Streak 17 | . 6 . 17 5 Robot Miss Streak 4 | . 1 . 4 4 Penetration Max . | . . . . . Secondary Targets 1 | . 1 . . . Max Gunslinging Chain 1 | . 1 . . . Shots Hit Robots 69 | . 10 . 40 19 Core Hits 25 | . 3 . 14 8 Critical Kills . | . . . . . Critical Parts Destroyed . | . . . . . Critical Strikes 8 | . 2 . 6 . Burn 8 | . 2 . 6 . Melee Attacks . | . . . . . Impact . | . . . . . Slashing . | . . . . . Piercing . | . . . . . Sneak Attacks . | . . . . . Combat Hostiles . | . . . . . Follow-up Attacks . | . . . . . Damage Inflicted 1033 | . 114 . 481 438 Guns 595 | . 114 . 481 . Cannons 438 | . . . . 438 Explosions . | . . . . . Melee . | . . . . . Ramming . | . . . . . Kinetic . | . . . . . Thermal 1033 | . 114 . 481 438 Explosive . | . . . . . Electromagnetic . | . . . . . Impact . | . . . . . Slashing . | . . . . . Piercing . | . . . . . Highest Corruption 1 | . 1 1 . . Average Corruption 1 | . 1 1 . . Corruption Purged . | . . . . . Corruption Blocked . | . . . . . Effects 4 | . . 4 . . Message Errors 2 | . . 2 . . Matter Fused 2 | . . 2 . . Overload Shots . | . . . . . Overflow Damage . | . . . . . Projectiles . | . . . . . Explosions . | . . . . . Melee . | . . . . . Knockbacks . | . . . . . Impact . | . . . . . Kinetic . | . . . . . Secondary . | . . . . . Self-Inflicted Damage . | . . . . . Shots . | . . . . . Rammed . | . . . . . Targets Rammed . | . . . . . Kicked . | . . . . . Crushed . | . . . . . Highest Temperature 335 | . 255 . 129 335 Average Temperature 84 | . 118 . 22 145 Received Heat Transfer 279 | . . . 108 171 Effects 5 | . 2 . . 3 Energy Bleed 1 | . . . . 1 Interference 4 | . 2 . . 2 Siege Activations . | . . . . . Robots Corrupted . | . . . . . Combat Hostiles . | . . . . . Parts Fried . | . . . . . Impact Corruptions . | . . . . . Robots Melted 1 | . 1 . . . Combat Hostiles 1 | . 1 . . . Parts Melted 8 | . . . 7 1 Heat Transferred 2869 | . 458 . 1708 703 Parts Sabotaged . | . . . . . Parts Stolen . | . . . . . Parts Stripped . | . . . . . Power Chain Reactions . | . . . . . Missiles Intercepted . | . . . . . Alert | -11 -10 -10 -9 -8 ------- Run | Jun Mat Min Mat Mat Peak Influence 137 | . 137 . 88 135 Initial 29 | . . . . 29 Average 39 | . 47 . 58 40 Maximum Alert Level . | . . . . . Low Security (%) 100 | 100 100 100 100 100 Level 1 . | . . . . . Level 2 . | . . . . . Level 3 . | . . . . . Level 4 . | . . . . . Level 5 . | . . . . . High Security . | . . . . . Max Security . | . . . . . Squads Dispatched 4 | . 2 . 1 1 Investigation 1 | . 1 . . . Extermination . | . . . . . Reinforcement 3 | . 1 . 1 1 Assault . | . . . . . Garrison . | . . . . . Intercept . | . . . . . Searches Triggered . | . . . . . Construction Impeded . | . . . . . Haulers Reinforced . | . . . . . Active Scanning Responses . | . . . . . Cargo Convoy Interrupts . | . . . . . Stealth | -11 -10 -10 -9 -8 --------- Run | Jun Mat Min Mat Mat Distress Signals 2 | . . . 1 1 Communications Jammed . | . . . . . Distress Signals . | . . . . . Times Spotted 20 | . 6 . 8 6 Peak Tracking Total 4 | . 3 . 4 4 Tactical Retreats . | . . . . . Traps | -11 -10 -10 -9 -8 ------- Run | Jun Mat Min Mat Mat Traps Triggered . | . . . . . Indirectly . | . . . . . Trap Hack Attempts . | . . . . . Triggered . | . . . . . Disarmed . | . . . . . Reprogrammed . | . . . . . Reused . | . . . . . Traps Extracted . | . . . . . Installed . | . . . . . Triggered . | . . . . . Machines | -11 -10 -10 -9 -8 ---------- Run | Jun Mat Min Mat Mat Machines Disabled . | . . . . . Max in Single Turn . | . . . . . Machines Repaired . | . . . . . Machines Sabotaged . | . . . . . Overloaded Fab Kills . | . . . . . Hacking | -11 -10 -10 -9 -8 --------- Run | Jun Mat Min Mat Mat Machines Accessed 13 | . 5 . 4 4 Terminals 10 | . 5 . 3 2 Fabricators . | . . . . . Repair Stations 2 | . . . . 2 Recycling Units . | . . . . . Scanalyzers 1 | . . . 1 . Garrison Access . | . . . . . Total Hacks 44 | . 18 . 11 15 Successful 19 | . 8 . 2 9 Failed 25 | . 10 . 9 6 Catastrophic 6 | . 3 . 3 . Database Lockouts . | . . . . . Manual 17 | . 10 . 3 4 Terminals 35 | . 18 . 9 8 Fabricators . | . . . . . Repair Stations 7 | . . . . 7 Recycling Units . | . . . . . Scanalyzers 2 | . . . 2 . Garrison Access . | . . . . . Terminal Hacks 9 | . 5 . 1 3 Terminal Index 2 | . 1 . . 1 Unreport Threat 1 | . 1 . . . Locate Traps 3 | . 1 . 1 1 Investigation Status 1 | . . . . 1 Hauler Manifests 1 | . 1 . . . Registered Components 1 | . 1 . . . Fabricator Hacks . | . . . . . Repair Station Hacks 6 | . . . . 6 Scan Component 3 | . . . . 3 Repair 3 | . . . . 3 Recycling Unit Hacks . | . . . . . Scanalyzer 1 | . . . 1 . Insert Component 1 | . . . 1 . Garrison Access Hacks . | . . . . . Unauthorized Hacks 3 | . 3 . . . Terminals 3 | . 3 . . . Assimilate 2 | . 2 . . . Operators 1 | . 1 . . . Fabricators . | . . . . . Repair Stations . | . . . . . Recycling Units . | . . . . . Scanalyzers . | . . . . . Garrison Access . | . . . . . Data Cores Recovered . | . . . . . Used . | . . . . . Hacking Detections 12 | . 5 . 4 3 Full Trace Events 3 | . 2 . . 1 Feedback Events 1 | . 1 . . . Corruption 1 | . 1 . . . Feedback Blocked . | . . . . . Robot Schematics Acquired . | . . . . . Robots Built . | . . . . . Authchips . | . . . . . Time . | . . . . . Total Robot Build Rating . | . . . . . Part Schematics Acquired . | . . . . . Parts Built . | . . . . . Authchips . | . . . . . Time . | . . . . . Total Part Build Rating . | . . . . . Parts Repaired 3 | . . . . 3 Time 188 | . . . . 188 Parts Recycled . | . . . . . Recycled Matter . | . . . . . Retrieved Matter . | . . . . . Retrieved Components . | . . . . . Parts Scanalyzed 1 | . . . 1 . Part Schematics Acquired . | . . . . . Parts Damaged . | . . . . . Bothacking | -11 -10 -10 -9 -8 ------------ Run | Jun Mat Min Mat Mat Used RIF Installer . | . . . . . Robots Hacked . | . . . . . Non-combat . | . . . . . Combat . | . . . . . Robot Hacks Applied . | . . . . . Relay Couplers Released . | . . . . . Fabnet Peak Effective % . | . . . . . Robots Rewired . | . . . . . Allies Hacked . | . . . . . Hacks Repelled . | . . . . . Allies | -11 -10 -10 -9 -8 -------- Run | Jun Mat Min Mat Mat Total Allies . | . . . . . Largest Group . | . . . . . Highest-Rated Group . | . . . . . Highest-Rated Ally . | . . . . . Total Orders . | . . . . . Ally Attacks . | . . . . . Total Damage . | . . . . . Kills . | . . . . . Allies Corrupted . | . . . . . Allies Melted . | . . . . . Intel | -11 -10 -10 -9 -8 ------- Run | Jun Mat Min Mat Mat Robot Analysis Total . | . . . . . Derelict Logs Recovered . | . . . . . Drone Launches . | . . . . . Drone Recoveries . | . . . . . Exploration | -11 -10 -10 -9 -8 ------------- Run | Jun Mat Min Mat Mat Turns Passed 1494 | 46 323 277 551 297 Spaces Moved 902 | 43 208 184 290 177 Core 24 | 24 . . . . Treads . | . . . . . Legs 878 | 19 208 184 290 177 Wheels . | . . . . . Hover . | . . . . . Flight . | . . . . . Fastest Speed 50 | 50 120 120 120 120 Average Speed 141 | 80 141 149 151 129 Slowest Speed 260 | 120 190 190 190 260 Overloaded Moves . | . . . . . Propulsion Burnouts . | . . . . . Robots Hopped . | . . . . . Cave-ins Triggered . | . . . . . Exploration Rate (%) 27 | 3 42 43 31 20 Regions Visited 4 Branch Regions 1 Pre-discovered Areas . | . . . . . Known Exits Taken 1 | . . . 1 . Unknown Exits Taken 3 | 1 1 1 . . Scrap Searched . | . . . . . Spaces Dug . | . . . . . Terrain Destroyed 2 | . . . . 2 Melee . | . . . . . Projectile 2 | . . . . 2 AOE . | . . . . . Terrain Rammed . | . . . . . Walls Destroyed . | . . . . . Machines Disabled . | . . . . . Actions | -11 -10 -10 -9 -8 --------- Run | Jun Mat Min Mat Mat Total 1014 | 53 225 187 341 208 Wait . | . . . . . Move 898 | 42 207 183 289 177 Hop . | . . . . . Pick Up 23 | 5 5 2 7 4 Fast Attach 1 | 1 . . . . Attach 18 | 5 2 1 5 5 Detach 3 | . . . 1 2 Swap 5 | . 3 . 2 . Drop 7 | . 2 1 3 1 Fire 59 | . 6 . 34 19 Melee . | . . . . . Ram . | . . . . . Kick . | . . . . . Crush . | . . . . . Escape Stasis . | . . . . . Rewire . | . . . . . Trap . | . . . . . Miscellaneous . | . . . . . Route ------- -11/Junkyard -10/Materials (discovered 2 exits: *Mat / [*Min]) -10/Mines -9/Materials (discovered 2 exits: *Mat / [*Sto]) -8/Materials History --------- Turn | Location | Event 3 | -11/Junkyard | Discovered new exit (range 16) 47 | -11/Junkyard | Entered Materials 175 | -10/Materials | Discovered new exit (range 14) 308 | -10/Materials | Build established: Mutant 308 | -10/Materials | Discovered new exit (range 8) 370 | -10/Materials | Entered Mines 396 | -10/Mines | Received a Rocket Launcher from a helpful Derelict 514 | -10/Mines | Found a damaged Exp. Sensor Array with a note attached 518 | -10/Mines | Found Prototype Device 519 | -10/Mines | Identified Exp. Sensor Array 531 | -10/Mines | Discovered new exit (range 8) 647 | -10/Mines | Entered Materials 647 | -9/Materials | Evolved 2 slots: Utility x2 705 | -9/Materials | Discovered new exit (range 15) 1123 | -9/Materials | Discovered new exit (range 16) 1196 | -9/Materials | Identified exit to Materials 1198 | -9/Materials | Entered another Materials area 1198 | -8/Materials | Evolved 2 slots: Propulsion x1, Utility x1 1334 | -8/Materials | Repaired Aluminum Leg 1360 | -8/Materials | Repaired Aluminum Leg 1362 | -8/Materials | Repaired Broken Exp. Sensor Array? 1495 | -8/Materials | Self-destructed Last Messages --------------- 01362_ >> REPAIR: Completed Broken Exp. Sensor Array? 01400_ Connecting with Terminal... >>Index(Terminals) Found 12 terminals. Downloaded coordinate data. 01423_ O-16 Technician: "IFF HANDSHAKE FAILED. SECURING TERMINAL." 01427_ ALERT: Hostiles spotted, dispatching reinforcements to Terminal M001. 01453_ W-25 Informer sends out distress signal. 01457_ Aluminum Leg destroyed. 01461_ G-47 Trooper destroyed. 01476_ Overheating: System interference. 01476_ Sensor Array temporarily disabled. 01478_ Acquired 47 matter. 01488_ Overheating: Energy bleed (-67). 01489_ Overheating: System interference. 01489_ Heat Sink temporarily disabled. 01489_ Critical hit (Burn: +37). 01492_ Lgt. Nuclear Core melted. 01492_ G-47 Trooper destroyed. Map ----- +----------------------------------------------------+ | ????????????????????????##!! ########### | | ????????????????????????###### ### | | ???????????????? ############# ### """"" | | ????????????????############# " " ### """"" | | ???????????????? ^^ "R" # """"" | | ???????????????? ^^ """ + | | ???????????????? # """"" | | ???????????????? # """"" | | ?????????????????" """ ######+###### # """"" | | ????????????????????""" # + # | | ?????????????????????"" # T ! """ #########+### | | ????????????????????? # """ ######### ### | | ????????????????????? # """ ##?????## ##? | | ?????????????????????## # """ ##?????## ##? | | ?????????????????????## # """ ##?????## ##? | | ?????????????????????## # ##?????## ##? | | ?????????????????????##=%#################??## ##? | | ?????????????????????##%[% ############??## ##? | | ?????????????????????##[ + ###### ##? | | ?????????????????????## u[= # ######+##? | | ?????????????????????## [= # # ##? | | ?????????????????????## a! # # """ ##? | | ?????????????????????## # # """ ##? | | ?????????????????###### == # ! # """ ##? | | ?????????????????########/# + # ##? | | ?????????????????##;= *@# # # !##? | | ?????????????????###= # ############+######? | | ?????????????? # %;= # ####? | | ?????????????? ####! # ##??? | | ?????????????? ##### # #### ##??? | | ?????????????????### # """ #### ##??? | | ??????????????????#########" """ #### ##??? | | ??????????????????#########T """ #### ##??? | | ?????????????????????????##" #### ##??? | | ?????????????????????????## #### ##??? | | ?????????????????????????## #### ##### | | ?????????????????????????############ #####+##### | | ?????????????????????????## [ # # ## | | ?????????????????????????## ! + + """ ## | | ?????????????????????????## """ # # """ ## | | ?????????????????????????##!!! """ # # """ ## | | ?????????????????????????##!![ """ #### ## | | ?????????????????????????##!![ #### """ ## | | ?????????????????????????## #### R" ## | | ?????????????????????????## ! #### """ ## | | ?????????????????????????############### ## | | ?????????????????????????######################### | | ??????????????????????????????????????############ | | ?????????????????????????????????????????????????? | | ?????????????????????????????????????????????????? | +----------------------------------------------------+ Best States ------------- Heat Dissipation 41 Energy Generation 14 Energy Capacity 280 Matter Stores 300 Matter Capacity 300 Sight Range 16 Robot Scan Range 20 Terrain Scan Density 10 Armor Coverage 150 Evasion (%) 55 Item Schematics ----------------- None Robot Schematics ------------------ None Fabricated ------------ Nothing Alien Tech Used ----------------- None Achievements -------------- None Challenges ------------ None Game ------ Seed SpikedFortressDevice Manual? 0 Play Time 00:20:33 Cumulative 47.0 hours Start 2023.09.11 @ 22:28:44 End 2023.09.11 @ 22:55:08 Sessions 3 Manual Loads 0 Difficulty Rogue Special Mode None Game No. 20 Rogue 20 Adventurer 0 Explorer 0 Win Type - Total 1 Types 0/0/0/1/0/0/0/0/0 Lore% 31 Gallery% 33 Achievement% 37 Wizard Run 0 Options --------- ASCII 0 Keyboard 0 Movement Mouse Keybinds 0 Fullscreen 2 Font 18/X11Bold Map View 76x50 Tactical HUD 1 Map Filters NONE Filters NONE Steam 1 RUN: 353b4aa5-3937-4910-ac7f-93ab81cc8cae